bitfinex/quotes_BTCUSD_20250826
["timestamp","ask_amount","ask_price","bid_price","bid_amount"]
[1756199773454,0.64009752,110480.0,110470.0,0.43175664]
[1756199773664,0.82112576,110480.0,110470.0,0.43175664]
[1756199773891,0.21732504,110490.0,110480.0,0.18102824]
[1756199774103,0.19010904,110490.0,110480.0,0.18619824]
[1756199774312,0.79321574,110490.0,110480.0,0.18619824]
[1756199774968,0.83080325,110490.0,110480.0,0.18619824]
[1756199778241,0.22769655,110490.0,110480.0,0.18619824]
[1756199778463,0.83080325,110490.0,110480.0,0.18619824]
[1756199779070,0.64069421,110490.0,110480.0,0.18619824]
[1756199779397,0.03758751,110490.0,110480.0,0.18619824]
[1756199779592,0.78411855,110490.0,110480.0,0.18619824]
[1756199780053,0.78411855,110490.0,110480.0,0.18719824]
[1756199780855,0.78411855,110490.0,110480.0,0.18819824]
[1756199781936,0.78411855,110490.0,110480.0,0.18622824]
[1756199782143,0.82154409,110490.0,110480.0,0.34123824]
[1756199783162,0.64053224,110490.0,110480.0,0.34123824]
[1756199783890,0.21843739,110490.0,110480.0,0.34123824]
[1756199784096,0.64053224,110490.0,110480.0,0.34123824]
[1756199785202,0.82154409,110490.0,110480.0,0.34123824]
[1756199785984,0.03742554,110490.0,110480.0,0.34123824]
[1756199786195,0.6031067,110490.0,110480.0,0.34123824]
[1756199786767,0.33409945,110500.0,110480.0,0.34123824]
[1756199786968,0.78411855,110490.0,110480.0,0.34123824]
[1756199787585,0.6031067,110490.0,110480.0,0.34023824]
[1756199787795,0.64053224,110490.0,110480.0,0.34023824]
[1756199788206,0.18105945,110500.0,110490.0,0.18101185]
[1756199788411,0.78416615,110500.0,110490.0,0.18418185]
[1756199788636,0.93716615,110500.0,110490.0,0.18418185]
[1756199789040,0.18105945,110500.0,110490.0,0.18619185]
[1756199789241,0.78416615,110500.0,110490.0,0.18619185]
[1756199789511,0.78416615,110500.0,110490.0,0.18418185]
[1756199789716,0.78416615,110500.0,110490.0,0.33718185]
[1756199789891,0.18101185,110490.0,110480.0,0.30387326]
[1756199790091,0.78411855,110490.0,110480.0,0.45788326]
[1756199790310,0.82177977,110490.0,110480.0,0.45788326]
[1756199791058,0.64076792,110490.0,110480.0,0.45788326]
[1756199791257,0.64076792,110490.0,110480.0,0.30488326]
[1756199791465,0.6031067,110490.0,110480.0,0.45888326]
[1756199792272,0.18105945,110500.0,110490.0,0.18101185]
[1756199792484,0.79264433,110500.0,110490.0,0.18619185]
[1756199792690,0.22699631,110500.0,110490.0,0.18619185]
[1756199792898,0.83010301,110500.0,110490.0,0.18619185]
[1756199793113,0.59274084,110500.0,110490.0,0.18619185]
[1756199793342,0.77375123,110500.0,110490.0,0.18619185]
[1756199793592,0.18101185,110490.0,110480.0,0.30287326]
[1756199793824,0.78411855,110490.0,110480.0,0.45784326]
[1756199794252,0.18101039,110500.0,110480.0,0.45784326]
[1756199794464,0.6031067,110490.0,110480.0,0.45467326]
[1756199794900,0.21705498,110500.0,110490.0,0.18101185]
[1756199795121,0.82016168,110500.0,110490.0,0.18418185]
[1756199795746,0.21705498,110500.0,110490.0,0.18619185]
[1756199796165,0.82016168,110500.0,110490.0,0.18619185]
[1756199797226,0.82016168,110500.0,110490.0,0.18819185]
[1756199797460,0.03604459,110500.0,110490.0,0.18819185]
[1756199797675,0.96436643,110510.0,110500.0,0.18099547]
[1756199797890,0.03598567,110510.0,110500.0,0.33913547]
[1756199798112,0.6031067,110510.0,110500.0,0.33913547]
[1756199798796,0.78422871,110510.0,110500.0,0.43059749]
[1756199799025,0.60324962,110510.0,110500.0,0.43059749]
[1756199799243,0.78422871,110510.0,110500.0,0.43059749]
[1756199799449,0.18112201,110510.0,110500.0,0.43059749]
[1756199799659,0.78422871,110510.0,110500.0,0.43059749]
[1756199799869,0.18112201,110510.0,110500.0,0.43059749]
[1756199800299,0.78422871,110510.0,110500.0,0.43059749]
[1756199800515,0.00014292,110510.0,110500.0,0.43059749]
[1756199801991,0.00014292,110510.0,110500.0,0.43259749]
[1756199802630,0.00014292,110510.0,110500.0,0.43359749]
[1756199803087,0.00014292,110510.0,110500.0,0.43259749]
[1756199803424,0.00014292,110510.0,110500.0,0.43459749]
[1756199804917,0.18112201,110510.0,110500.0,0.28163749]
[1756199805354,0.78422871,110510.0,110500.0,0.43471749]
[1756199807388,0.78422871,110510.0,110500.0,0.28163749]
[1756199807592,0.78422871,110510.0,110500.0,0.43471749]
[1756199809779,0.18112201,110510.0,110500.0,0.43471749]
[1756199810016,0.00014292,110510.0,110500.0,0.43471749]
[1756199810252,0.60324962,110510.0,110500.0,0.43471749]
[1756199810468,0.78422871,110510.0,110500.0,0.43471749]
[1756199811452,0.00014292,110510.0,110500.0,0.43471749]
[1756199811692,0.60324962,110510.0,110500.0,0.43471749]
[1756199811813,0.00014292,110510.0,110500.0,0.43471749]
[1756199813071,0.00014292,110510.0,110500.0,0.43271749]
[1756199813677,0.00014292,110510.0,110500.0,0.46192349]
[1756199813893,0.00014292,110510.0,110500.0,0.45992349]
[1756199814095,0.00014292,110510.0,110500.0,0.46292349]
[1756199818529,0.00014292,110510.0,110500.0,0.30984349]
[1756199818739,0.00014292,110510.0,110500.0,0.46276349]
[1756199824011,0.78422871,110510.0,110500.0,0.46276349]
[1756199824458,0.60324962,110510.0,110500.0,0.46276349]
[1756199824589,0.78422871,110510.0,110500.0,0.46276349]
[1756199824810,0.78422871,110510.0,110500.0,0.28176802]
[1756199825017,0.78422871,110510.0,110500.0,0.46075349]
[1756199825449,0.6322306,110510.0,110500.0,0.46279349]
[1756199826054,0.45125151,110510.0,110500.0,0.46279349]
[1756199826290,0.00014292,110510.0,110500.0,0.46279349]
[1756199826496,0.45125151,110510.0,110500.0,0.46279349]
[1756199827296,0.00014292,110510.0,110500.0,0.46279349]
[1756199827459,0.18112201,110510.0,110500.0,0.46279349]
[1756199827655,0.00014292,110510.0,110500.0,0.46279349]
[1756199827905,0.45125151,110510.0,110500.0,0.46279349]
[1756199828305,0.00014292,110510.0,110500.0,0.46279349]
[1756199828511,0.20352379,110510.0,110500.0,0.46279349]
[1756199829319,0.81973592,110520.0,110510.0,0.18097909]
[1756199829537,0.81973592,110520.0,110510.0,0.18301909]
[1756199829736,0.81973592,110520.0,110510.0,0.18607909]
[1756199830466,0.81973592,110520.0,110510.0,0.18403909]
[1756199830882,0.81973592,110520.0,110510.0,0.18603909]
[1756199832222,1.42110182,110520.0,110510.0,0.18603909]
[1756199833363,0.63877302,110520.0,110510.0,0.18807909]
[1756199833568,0.6013659,110520.0,110510.0,0.18807909]
[1756199834320,0.63222296,110520.0,110510.0,0.18807909]
[1756199835216,0.19076584,110530.0,110520.0,0.18096272]
[1756199835426,0.78301224,110530.0,110520.0,0.33898272]
[1756199836401,0.6020659,110530.0,110520.0,0.33898272]
[1756199837545,0.18164634,110530.0,110520.0,0.33898272]
[1756199837694,0.78301224,110530.0,110520.0,0.33898272]
[1756199837962,0.81395999,110530.0,110520.0,0.33898272]
[1756199838308,0.81395999,110530.0,110520.0,0.18606272]
[1756199838509,0.81395999,110530.0,110520.0,0.33898272]
[1756199840415,0.21259409,110530.0,110520.0,0.33898272]
[1756199840626,0.81395999,110530.0,110520.0,0.33898272]
[1756199840825,0.81395999,110530.0,110520.0,0.15292]
[1756199841293,0.81395999,110530.0,110520.0,0.33388272]
[1756199842103,0.21259409,110530.0,110520.0,0.33694272]
[1756199842275,0.81395999,110530.0,110520.0,0.33694272]
[1756199842872,0.81395999,110530.0,110520.0,0.15292]
[1756199843266,0.81395999,110530.0,110520.0,0.15598]
[1756199843862,0.81395999,110530.0,110520.0,0.00306]
[1756199844200,0.81395999,110530.0,110520.0,0.15292]
[1756199844612,0.81395999,110530.0,110520.0,0.33388272]
[1756199844780,0.81395999,110530.0,110520.0,0.33694272]
[1756199845281,0.63301365,110530.0,110520.0,0.33898272]
[1756199845589,0.81395999,110530.0,110520.0,0.33898272]
[1756199846397,0.21259409,110530.0,110520.0,0.33898272]
[1756199846598,0.81395999,110530.0,110520.0,0.43044474]
[1756199847400,0.21259409,110530.0,110520.0,0.43044474]
[1756199847628,0.63301365,110530.0,110520.0,0.43044474]
[1756199847770,0.81395999,110530.0,110520.0,0.43044474]
[1756199848160,0.81395999,110530.0,110520.0,0.43144474]
[1756199848697,0.0007,110530.0,110520.0,0.43244474]
[1756199848876,0.0007,110530.0,110520.0,0.27952474]
[1756199849316,0.0007,110530.0,110520.0,0.43244474]
[1756199849710,0.6020659,110530.0,110520.0,0.43244474]
[1756199852993,0.18164634,110530.0,110520.0,0.43244474]
[1756199853190,0.78301224,110530.0,110520.0,0.43244474]
[1756199853368,0.6020659,110530.0,110520.0,0.43244474]
[1756199853725,0.78301224,110530.0,110520.0,0.43244474]
[1756199853908,0.6020659,110530.0,110520.0,0.43244474]
[1756199854882,0.78301224,110530.0,110520.0,0.43244474]
[1756199855506,0.18164634,110530.0,110520.0,0.43244474]
[1756199855695,0.6020659,110530.0,110520.0,0.43244474]
[1756199855929,0.78301224,110530.0,110520.0,0.27952474]
[1756199856121,0.78301224,110530.0,110520.0,0.43244474]
[1756199856905,0.78301224,110530.0,110520.0,0.27952474]
[1756199857123,0.78301224,110530.0,110520.0,0.43244474]
[1756199858204,0.18164634,110530.0,110520.0,0.43244474]
[1756199858409,0.0007,110530.0,110520.0,1.10341064]
[1756199858609,0.0007,110530.0,110520.0,0.50204474]
[1756199858813,0.0007,110530.0,110520.0,0.52924374]
[1756199860072,0.0007,110530.0,110520.0,1.13060964]
[1756199860489,0.0007,110530.0,110520.0,1.17234142]
[1756199860698,0.0007,110530.0,110520.0,1.33979044]
[1756199860910,0.0007,110530.0,110520.0,1.67779044]
[1756199861117,0.0007,110530.0,110520.0,1.07642454]
[1756199861335,0.0007,110530.0,110520.0,1.08342454]
[1756199861556,0.0007,110530.0,110520.0,1.07938454]
[1756199861732,0.0007,110530.0,110520.0,1.67775044]
[1756199862005,0.0007,110530.0,110520.0,1.68775044]
[1756199863381,0.0007,110530.0,110520.0,2.08775044]
[1756199865410,0.0007,110530.0,110520.0,1.33638454]
[1756199867324,0.0007,110530.0,110520.0,1.93775044]
[1756199867890,0.0007,110530.0,110520.0,1.33638454]
[1756199869749,0.0007,110530.0,110520.0,1.93775044]
[1756199873070,0.0007,110530.0,110520.0,1.89601866]
[1756199874198,0.0007,110530.0,110520.0,1.29465276]
[1756199874414,0.0007,110530.0,110520.0,1.89601866]
[1756199875184,0.0007,110530.0,110520.0,1.74313866]
[1756199875384,0.0007,110530.0,110520.0,1.29461276]
[1756199875948,0.0007,110530.0,110520.0,1.14177276]
[1756199876151,0.0007,110530.0,110520.0,1.29461276]
[1756199877315,0.0007,110530.0,110520.0,1.89597866]
[1756199879085,1e-08,110530.0,110520.0,2.59734456]
[1756199879288,1e-08,110530.0,110520.0,2.99286456]
[1756199880288,1e-08,110530.0,110520.0,2.83402456]
[1756199880506,1e-08,110530.0,110520.0,2.99586456]
[1756199880718,1e-08,110530.0,110520.0,2.99986456]
[1756199880934,1e-08,110530.0,110520.0,2.99186456]
[1756199881148,1e-08,110530.0,110520.0,2.99686456]
[1756199881340,1e-08,110530.0,110520.0,3.00586456]
[1756199881636,1e-08,110530.0,110520.0,2.91034456]
[1756199881788,1e-08,110530.0,110520.0,2.90134456]
[1756199882448,1e-08,110530.0,110520.0,2.89634456]
[1756199882647,1e-08,110530.0,110520.0,2.90534456]
[1756199882848,1e-08,110530.0,110520.0,2.90934456]
[1756199883080,1e-08,110530.0,110520.0,1.70661276]
[1756199883264,1e-08,110530.0,110520.0,2.90934456]
[1756199883696,0.39216134,110580.0,110570.0,0.18088088]
[1756199883907,0.39216134,110580.0,110570.0,0.4251829]
[1756199884109,0.39229072,110580.0,110570.0,0.4251829]
[1756199884440,0.39229072,110580.0,110570.0,0.4523729]
[1756199884673,0.39229072,110580.0,110570.0,0.2995329]
[1756199884887,0.57315525,110580.0,110570.0,0.4523729]
[1756199885323,0.40075105,110580.0,110570.0,0.4523729]
[1756199886303,0.40075105,110580.0,110570.0,0.4533729]
[1756199887089,0.40075246,110580.0,110570.0,0.4533729]
[1756199887615,0.40075442,110580.0,110570.0,0.4533729]
[1756199888030,0.79082351,110580.0,110570.0,0.02819]
[1756199888231,0.79082351,110580.0,110570.0,0.1538]
[1756199889178,0.79082351,110580.0,110570.0,0.1528]
[1756199889393,0.79082351,110580.0,110560.0,0.06956]
[1756199889592,0.18089725,110560.0,110550.0,0.027193]
[1756199889805,1.39209275,110560.0,110550.0,0.27145502]
[1756199889999,0.79072685,110560.0,110550.0,0.27145502]
[1756199890164,0.79072685,110560.0,110550.0,0.24426202]
[1756199890782,0.18091361,110550.0,110540.0,0.06956]
[1756199890982,0.79074321,110550.0,110540.0,0.24426202]
[1756199892871,0.79074321,110550.0,110540.0,0.09146202]
[1756199893076,0.79074321,110550.0,110530.0,0.26325791]
[1756199893077,0.18092998,110540.0,110530.0,0.26325791]
[1756199893296,0.78229588,110540.0,110530.0,0.31755901]
[1756199893986,0.78229588,110540.0,110530.0,0.07329699]
[1756199894193,0.18094634,110530.0,110520.0,0.06956]
[1756199894400,0.78231224,110530.0,110520.0,0.31386202]
[1756199894618,0.80975487,110530.0,110520.0,0.31386202]
[1756199895871,0.18096272,110520.0,110510.0,0.26332503]
[1756199896084,0.78232862,110520.0,110510.0,0.31759901]
[1756199896301,0.18097909,110510.0,110500.0,0.180045]
[1756199896515,0.78234499,110510.0,110500.0,0.09146202]
[1756199896725,0.78234499,110510.0,110500.0,0.24454202]
[1756199897588,0.78234499,110510.0,110500.0,0.09146202]
[1756199898005,0.78234499,110510.0,110500.0,0.24454202]
[1756199899075,0.78234499,110510.0,110500.0,0.24458202]
[1756199899450,0.78234499,110510.0,110500.0,0.09146202]
[1756199899780,0.78234499,110510.0,110500.0,0.24458202]
[1756199900051,0.18097909,110510.0,110500.0,0.42557749]
[1756199900255,0.78234499,110510.0,110500.0,0.27744749]
[1756199900457,0.78234499,110510.0,110500.0,0.43056749]
[1756199900641,0.6013659,110510.0,110500.0,0.43056749]
[1756199900845,0.18097909,110510.0,110500.0,0.27744749]
[1756199901049,0.78234499,110510.0,110500.0,0.43056749]
[1756199901469,0.6013659,110510.0,110500.0,0.43056749]
[1756199901848,0.80953662,110520.0,110510.0,0.18097909]
[1756199902020,0.6285739,110520.0,110510.0,0.18302909]
[1756199902215,0.027208,110520.0,110510.0,0.27743111]
[1756199902459,0.81880218,110530.0,110510.0,0.27743111]
[1756199902669,0.18999365,110530.0,110520.0,0.33702272]
[1756199902819,0.79135955,110530.0,110520.0,0.33408272]
[1756199903220,0.79135955,110530.0,110520.0,0.33907272]
[1756199903618,0.6013659,110530.0,110520.0,0.33907272]
[1756199903816,0.78231224,110530.0,110520.0,0.33907272]
[1756199904021,0.6013659,110530.0,110520.0,0.33907272]
[1756199904857,0.62870019,110540.0,110530.0,0.18094634]
[1756199905145,0.78242517,110540.0,110530.0,0.18299634]
[1756199905393,0.60149519,110540.0,110530.0,0.18593634]
[1756199906085,0.78242517,110540.0,110530.0,0.18593634]
[1756199906319,0.00012929,110540.0,110530.0,0.27739836]
[1756199907206,0.00112929,110540.0,110530.0,0.27739836]
[1756199909098,0.00112929,110540.0,110530.0,0.95206125]
[1756199909292,0.00112929,110540.0,110530.0,0.97925825]
[1756199909892,0.00112929,110540.0,110530.0,0.37889235]
[1756199910278,0.00012929,110540.0,110530.0,0.37889235]
[1756199910467,0.00012929,110540.0,110530.0,0.53297235]
[1756199910914,0.00012929,110540.0,110530.0,0.53097235]
[1756199911118,0.00012929,110540.0,110530.0,0.30459536]
[1756199911293,0.00012929,110540.0,110530.0,0.45963536]
[1756199911893,0.00012929,110540.0,110530.0,0.45971536]
[1756199912335,0.00012929,110540.0,110530.0,0.46171536]
[1756199913513,0.00012929,110540.0,110530.0,0.46167536]
[1756199915023,0.00012929,110540.0,110530.0,0.46163536]
[1756199917390,0.00012929,110540.0,110530.0,0.46159536]
[1756199921643,0.00012929,110540.0,110530.0,1.06296126]
[1756199923152,0.00012929,110540.0,110530.0,1.13625825]
[1756199923374,0.00012929,110540.0,110530.0,1.15370727]
[1756199924000,0.00012929,110540.0,110530.0,1.00070727]
[1756199924230,0.00012929,110540.0,110530.0,1.15374727]
[1756199924651,0.00012929,110540.0,110530.0,1.00070727]
[1756199924830,0.00012929,110540.0,110530.0,1.15370727]
[1756199925955,0.00012929,110540.0,110530.0,1.15366727]
[1756199926643,0.00012929,110540.0,110530.0,1.55366727]
[1756199926981,0.00012929,110540.0,110530.0,0.39934137]
[1756199927188,0.00012929,110540.0,110530.0,1.15362727]
[1756199928457,0.00012929,110540.0,110530.0,1.55362727]
[1756199930062,0.00012929,110540.0,110530.0,1.00070727]
[1756199930320,0.00012929,110540.0,110530.0,1.15358727]
[1756199930536,0.00012929,110540.0,110530.0,1.15354727]
[1756199931283,0.00012929,110540.0,110530.0,0.30654536]
[1756199931492,0.00012929,110540.0,110530.0,0.45938536]
[1756199932480,0.00012929,110540.0,110530.0,0.45644536]
[1756199932720,0.00012929,110540.0,110530.0,0.45957536]
[1756199932919,0.00012929,110540.0,110530.0,0.45644536]
[1756199933546,0.00012929,110540.0,110530.0,0.45957536]
[1756199935026,0.00012929,110540.0,110530.0,0.46157536]
[1756199935448,0.00012929,110540.0,110530.0,0.43437836]
[1756199935685,0.00012929,110540.0,110530.0,0.27953836]
[1756199935899,0.00012929,110540.0,110530.0,0.42932836]
[1756199937380,0.00012929,110540.0,110530.0,0.43249836]
[1756199938230,0.00012929,110540.0,110530.0,0.43460836]
[1756199938439,0.00012929,110540.0,110530.0,0.43249836]
[1756199939239,0.18105927,110540.0,110530.0,0.27640836]
[1756199939425,0.18105927,110540.0,110530.0,0.42924836]
[1756199940140,0.00012929,110540.0,110530.0,0.43241836]
[1756199940555,0.00012929,110540.0,110530.0,0.43452836]
[1756199940771,0.00012929,110540.0,110530.0,1.03589426]
[1756199941205,0.00012929,110540.0,110530.0,1.10919125]
[1756199941618,0.00012929,110540.0,110530.0,1.13638725]
[1756199942838,0.6013659,110560.0,110550.0,0.18091361]
[1756199943139,0.790744,110560.0,110550.0,0.24446202]
[1756199943564,0.1893781,110560.0,110550.0,0.24446202]
[1756199943781,0.78226357,110560.0,110550.0,0.24446202]
[1756199943994,0.79074429,110560.0,110550.0,0.24446202]
[1756199944219,0.79978915,110560.0,110550.0,0.24446202]
[1756199944428,0.79978915,110560.0,110550.0,0.42537563]
[1756199944634,0.19842325,110560.0,110550.0,0.24446202]
[1756199944846,0.00848084,110560.0,110550.0,0.42537563]
[1756199945067,0.00848084,110560.0,110550.0,0.43065563]
[1756199945287,0.77119888,110570.0,110560.0,0.18089725]
[1756199945582,0.00848087,110570.0,110560.0,0.18406725]
[1756199945826,0.18936175,110570.0,110560.0,0.27763927]
[1756199946280,0.00848087,110570.0,110560.0,0.27763927]
[1756199948893,0.60984677,110570.0,110560.0,0.27763927]
[1756199949275,0.00848087,110570.0,110560.0,0.27763927]
[1756199949473,0.60984677,110570.0,110560.0,0.27763927]
[1756199949818,0.6013659,110570.0,110560.0,0.27763927]
[1756199950641,0.78224678,110570.0,110560.0,0.43079927]
[1756199951056,0.78224678,110570.0,110560.0,0.42547927]
[1756199951260,0.18088088,110570.0,110560.0,0.42547927]
[1756199951431,0.6013659,110570.0,110560.0,0.43075927]
[1756199951871,0.78224678,110570.0,110560.0,0.43075927]
[1756199952402,0.18088088,110570.0,110560.0,0.42547927]
[1756199952832,0.78224678,110570.0,110560.0,0.42547927]
[1756199953590,0.79072598,110570.0,110560.0,0.42547927]
[1756199953767,0.79072598,110570.0,110560.0,0.42864927]
[1756199953903,0.78224678,110570.0,110560.0,0.42864927]
[1756199954119,0.79072598,110570.0,110560.0,0.42864927]
[1756199954784,0.79072598,110570.0,110560.0,0.27552927]
[1756199955007,0.79072598,110570.0,110560.0,0.42888927]
[1756199955207,0.78224678,110570.0,110560.0,0.42888927]
[1756199955662,0.18089725,110560.0,110550.0,0.25046809]
[1756199955853,0.78226315,110560.0,110550.0,0.49846563]
[1756199956229,0.78226315,110560.0,110550.0,0.50057563]
[1756199956476,0.6013659,110560.0,110550.0,0.50057563]
[1756199956630,0.18088088,110570.0,110560.0,0.18089725]
[1756199956836,0.79072588,110570.0,110560.0,0.18089725]
[1756199957048,0.18935998,110570.0,110560.0,0.18089725]
[1756199957224,0.78224678,110570.0,110550.0,0.49846563]
[1756199957426,0.6013659,110560.0,110550.0,0.49846563]
[1756199957652,0.6013659,110560.0,110550.0,0.50057563]
[1756199957819,0.6013659,110560.0,110550.0,0.50157563]
[1756199958019,0.18088088,110570.0,110560.0,0.18089725]
[1756199958252,0.18088088,110570.0,110550.0,0.49846563]
[1756199958253,0.18089725,110560.0,110550.0,0.49846563]
[1756199958450,0.78226315,110560.0,110550.0,0.50057563]
[1756199958860,0.78226315,110560.0,110550.0,0.50157563]
[1756199959071,0.6013659,110560.0,110550.0,0.50157563]
[1756199960104,0.18088088,110570.0,110560.0,0.18089725]
[1756199960444,0.18088088,110570.0,110550.0,0.50157563]
[1756199960445,0.18088088,110570.0,110550.0,0.49946563]
[1756199960696,0.6013659,110560.0,110550.0,0.49946563]
[1756199960869,0.6013659,110560.0,110550.0,0.50157563]
[1756199961244,0.18088088,110570.0,110560.0,0.18089725]
[1756199961674,0.18088088,110570.0,110560.0,0.18406725]
[1756199961916,0.18088088,110570.0,110560.0,0.00317]
[1756199962141,0.18088088,110570.0,110550.0,0.49846563]
[1756199962356,0.18088088,110570.0,110560.0,0.18406725]
[1756199963621,0.78224678,110570.0,110560.0,0.18406725]
[1756199964585,0.78224678,110570.0,110560.0,0.00317]
[1756199964995,0.78224678,110570.0,110550.0,0.49529563]
[1756199965227,0.6013659,110560.0,110550.0,0.49846563]
[1756199965447,0.6013659,110560.0,110550.0,0.50057563]
[1756199965669,0.18088088,110570.0,110550.0,0.50057563]
[1756199965824,0.6013659,110570.0,110560.0,0.18405725]
[1756199966060,0.18088088,110570.0,110560.0,0.18615725]
[1756199966273,0.78224678,110570.0,110560.0,0.18615725]
[1756199966860,0.6013659,110570.0,110560.0,0.18615725]
[1756199967173,0.21696793,110580.0,110570.0,0.18088088]
[1756199967346,0.21696793,110580.0,110570.0,0.33404088]
[1756199967347,0.82694473,110580.0,110570.0,0.33404088]
[1756199967543,0.82694473,110580.0,110570.0,0.33720088]
[1756199968192,0.00012929,110580.0,110570.0,0.4307629]
[1756199969438,0.00112929,110580.0,110570.0,0.4307629]
[1756199969895,0.00012929,110580.0,110570.0,0.4307629]
[1756199970108,0.00012929,110580.0,110570.0,0.4317629]
[1756199970323,0.60149519,110580.0,110570.0,0.4317629]
[1756199970757,0.00012929,110580.0,110570.0,0.4317629]
[1756199971000,0.60149519,110580.0,110570.0,0.4317629]
[1756199971190,0.40275937,110580.0,110570.0,0.4327629]
[1756199971911,0.20398218,110590.0,110580.0,0.18086453]
[1756199972159,0.20398218,110590.0,110580.0,0.18296453]
[1756199972356,0.20398218,110590.0,110580.0,0.18612453]
[1756199972573,0.20398218,110590.0,110580.0,0.33710453]
[1756199973051,0.20398218,110590.0,110580.0,0.18402453]
[1756199973271,0.80534808,110590.0,110580.0,0.15624]
[1756199974154,0.6015659,110590.0,110580.0,0.33920453]
[1756199974344,0.6015659,110590.0,110580.0,0.33853675]
[1756199975757,0.78241407,110590.0,110580.0,0.33853675]
[1756199976405,0.18104817,110590.0,110580.0,0.33853675]
[1756199976624,0.78241407,110590.0,110580.0,0.33853675]
[1756199977037,0.6015659,110590.0,110580.0,0.42999877]
[1756199977676,0.78241407,110590.0,110580.0,0.27691877]
[1756199977882,0.78241407,110590.0,110580.0,0.42987877]
[1756199978901,0.18086453,110580.0,110570.0,0.00316]
[1756199979104,0.78223043,110580.0,110570.0,0.4305229]
[1756199979704,0.78223043,110580.0,110570.0,0.2776029]
[1756199979905,0.78223043,110580.0,110570.0,0.4305229]
[1756199980313,0.78223043,110580.0,110570.0,0.4315229]
[1756199980489,0.78223043,110580.0,110570.0,0.2786029]
[1756199980670,0.78314043,110580.0,110570.0,0.4314829]
[1756199981284,0.78314043,110580.0,110570.0,0.4324829]
[1756199982370,0.78314043,110580.0,110570.0,0.2796029]
[1756199982581,0.18177453,110580.0,110570.0,0.4324829]
[1756199982781,0.18177453,110580.0,110570.0,0.24630202]
[1756199983206,0.78371043,110580.0,110570.0,0.002]
[1756199984377,0.78371043,110580.0,110570.0,0.001]
[1756199984587,0.18088088,110570.0,110560.0,0.153]
[1756199984881,0.78315678,110570.0,110560.0,0.15312929]
[1756199985933,0.78315678,110570.0,110560.0,0.00012929]
[1756199986093,0.78315678,110570.0,110560.0,0.15308929]
[1756199989209,0.78315678,110570.0,110560.0,0.15624929]
[1756199989433,0.78224678,110570.0,110560.0,0.33924654]
[1756199989709,0.18086453,110580.0,110570.0,0.18088088]
[1756199989974,0.18086453,110580.0,110570.0,0.18614088]
[1756199990940,0.78223043,110580.0,110570.0,0.18614088]
[1756199991767,0.18088088,110570.0,110560.0,0.00012929]
[1756199991994,0.78315678,110570.0,110560.0,0.00012929]
[1756199992724,1.38509268,110570.0,110560.0,0.00012929]
[1756199993141,1.39356536,110570.0,110560.0,0.00012929]
[1756199993356,1.39356399,110570.0,110560.0,0.00012929]
[1756199993561,1.38509268,110570.0,110560.0,0.00012929]
[1756199993762,1.38609268,110570.0,110560.0,0.00012929]
[1756199994088,6.39456394,110570.0,110560.0,0.00012929]
[1756199994496,6.39456394,110570.0,110560.0,0.00112929]
[1756199994869,6.39456394,110570.0,110560.0,0.00012929]
[1756199995277,6.38609268,110570.0,110560.0,0.00012929]
[1756199995736,6.41328968,110570.0,110560.0,0.00012929]
[1756199996601,6.42175655,110570.0,110560.0,0.00012929]
[1756199997189,6.57410655,110570.0,110560.0,0.00012929]
[1756199997398,6.56563968,110570.0,110560.0,0.00012929]
[1756199997819,6.41271968,110570.0,110560.0,0.00012929]
[1756199998027,6.56563968,110570.0,110560.0,0.00012929]
[1756199998398,0.81044378,110570.0,110560.0,0.00508929]
[1756199999008,0.78324678,110570.0,110560.0,0.00508929]
[1756200000052,1.53840268,110570.0,110560.0,0.00012929]
[1756200000522,6.61597782,110570.0,110560.0,0.00012929]
[1756200000706,6.98830722,110570.0,110560.0,0.00012929]
[1756200000849,6.99677059,110570.0,110560.0,0.00012929]
[1756200001048,6.91406305,110570.0,110560.0,0.00012929]
[1756200001249,6.91406311,110570.0,110560.0,0.00012929]
[1756200001474,6.76118311,110570.0,110560.0,0.00012929]
[1756200001683,6.75271968,110570.0,110560.0,0.00012929]
[1756200001917,6.91414279,110570.0,110560.0,0.00012929]
[1756200002318,6.9559455,110570.0,110560.0,0.00012929]
[1756200002733,5.55845099,110570.0,110560.0,0.00012929]
[1756200002933,5.71149099,110570.0,110560.0,0.00012929]
[1756200003139,6.76118279,110570.0,110560.0,0.00012929]
[1756200003537,5.54998788,110570.0,110560.0,0.00211929]
[1756200003769,6.30523378,110570.0,110560.0,0.00508929]
[1756200003942,6.30523378,110570.0,110560.0,0.00012929]
[1756200004141,6.30523378,110570.0,110560.0,0.00211929]
[1756200004348,1.15044378,110570.0,110560.0,0.00508929]
[1756200004797,1.15135378,110570.0,110560.0,0.00508929]
[1756200004988,1.15135378,110570.0,110560.0,0.00012929]
[1756200005148,1.30527378,110570.0,110560.0,0.00012929]
[1756200005352,1.90663968,110570.0,110560.0,0.00012929]
[1756200005596,6.91567132,110570.0,110560.0,0.00012929]
[1756200005798,7.03946274,110570.0,110560.0,0.00012929]
[1756200005999,7.00713334,110570.0,110560.0,0.00012929]
[1756200007391,7.02458236,110570.0,110560.0,0.00012929]
[1756200007611,7.05691176,110570.0,110560.0,0.00012929]
[1756200008196,7.05591176,110570.0,110560.0,0.00012929]
[1756200008407,7.06225949,110570.0,110560.0,0.00012929]
[1756200008613,7.06325949,110570.0,110560.0,0.00012929]
[1756200009216,7.03044009,110570.0,110560.0,0.00012929]
[1756200009422,7.03044009,110570.0,110560.0,0.00211929]
[1756200009423,7.00660334,110570.0,110560.0,0.00211929]
[1756200009596,1.31290542,110570.0,110560.0,0.00508929]
[1756200009810,1.15890542,110570.0,110560.0,0.00508929]
[1756200010025,1.30444378,110570.0,110560.0,0.00508929]
[1756200010435,1.15044378,110570.0,110560.0,0.00508929]
[1756200010831,1.30340378,110570.0,110560.0,0.00508929]
[1756200011038,1.30440378,110570.0,110560.0,0.00508929]
[1756200011250,1.30540378,110570.0,110560.0,0.00508929]
[1756200011476,1.13490279,110570.0,110560.0,0.00508929]
[1756200011675,1.28986279,110570.0,110560.0,0.00508929]
[1756200012421,1.29833351,110570.0,110560.0,0.00508929]
[1756200013929,1.29924351,110570.0,110560.0,0.00012929]
[1756200014170,1.29833351,110570.0,110560.0,0.00508929]
[1756200015369,1.29924351,110570.0,110560.0,0.00309929]
[1756200015561,1.29924351,110570.0,110560.0,0.00012929]
[1756200017612,1.29924351,110570.0,110560.0,0.00309929]
[1756200017812,1.14437351,110570.0,110560.0,0.00508929]
[1756200018016,1.29841351,110570.0,110560.0,0.00508929]
[1756200019729,1.29841877,110570.0,110560.0,0.00508929]
[1756200020786,1.29833877,110570.0,110560.0,0.00508929]
[1756200022165,1.14437877,110570.0,110560.0,0.00508929]
[1756200022372,1.29833877,110570.0,110560.0,0.00508929]
[1756200022575,1.14437877,110570.0,110560.0,0.00508929]
[1756200022786,1.29833877,110570.0,110560.0,0.00508929]
[1756200022996,1.14437877,110570.0,110560.0,0.00508929]
[1756200023229,1.29829877,110570.0,110560.0,0.00508929]
[1756200025548,1.29306595,110570.0,110560.0,0.00508929]
[1756200027940,1.29298595,110570.0,110560.0,0.00508929]